bitfinex/quotes_SOLUSD_20251119
["timestamp","ask_amount","ask_price","bid_price","bid_amount"]
[1763521069123,4.89,143.02,143.0,5.23141583]
[1763521070996,9.78882769,143.01,142.91,4.2]
[1763521071213,9.78882769,142.99,142.95,5.23141583]
[1763521071697,4.89,142.98,142.95,5.23141583]
[1763521071913,4.89,142.98,142.96,5.23141583]
[1763521072145,0.69,143.0,142.97,5.23141583]
[1763521072314,4.2,142.99,142.98,5.23141583]
[1763521072515,0.69,142.99,142.98,5.23141583]
[1763521072714,4.89,142.99,142.98,5.23141583]
[1763521075025,0.69,143.02,142.98,5.23141583]
[1763521075228,9.78882769,143.0,142.98,5.23141583]
[1763521075444,9.78882769,143.0,142.96,5.23141583]
[1763521075783,0.69,142.99,142.95,5.23141583]
[1763521075916,4.2,142.98,142.95,5.23141583]
[1763521076331,0.69,142.97,142.95,5.23141583]
[1763521079449,4.89,142.97,142.95,5.23141583]
[1763521080157,4.89,142.97,142.87,4.2]
[1763521080158,9.78882769,142.96,142.87,4.2]
[1763521080320,9.78882769,142.94,142.9,5.23141583]
[1763521080528,9.78882769,142.96,142.85,0.2]
[1763521080529,4.89,142.93,142.91,5.23141583]
[1763521081249,0.69,142.92,142.91,5.23141583]
[1763521081428,0.69,142.92,142.9,5.23141583]
[1763521081630,9.78882769,142.91,142.87,5.23141583]
[1763521081825,9.78882769,142.89,142.87,5.23141583]
[1763521082037,9.78882769,142.89,142.86,5.23141583]
[1763521082234,0.69,142.88,142.85,0.2]
[1763521082435,4.2,142.87,142.85,0.2]
[1763521082638,13.98882769,142.87,142.85,0.2]
[1763521082848,13.98882769,142.87,142.86,5.23141583]
[1763521085833,14.67882769,142.87,142.86,5.23141583]
[1763521086043,14.67882769,142.87,142.85,5.43141583]
[1763521086350,0.69,142.86,142.85,5.43141583]
[1763521086937,10.47882769,142.86,142.85,5.43141583]
[1763521087155,10.47882769,142.86,142.85,0.2]
[1763521088955,14.67882769,142.86,142.85,0.2]
[1763521089754,10.47882769,142.86,142.85,0.2]
[1763521089935,14.67882769,142.86,142.85,0.2]
[1763521092147,20.38644502,142.89,142.85,0.2]
[1763521092148,18.81096,142.89,142.85,2.46548502]
[1763521092352,9.78882769,142.87,142.85,0.2]
[1763521092550,9.78882769,142.87,142.86,2.26548502]
[1763521092747,10.44882769,142.87,142.86,2.26548502]
[1763521093967,14.62882769,142.87,142.86,2.26548502]
[1763521097265,14.62882769,142.87,142.85,0.2]
[1763521097466,10.44882769,142.86,142.85,2.46548502]
[1763521097642,14.62882769,142.86,142.85,2.46548502]
[1763521100169,4.18,142.86,142.85,2.46548502]
[1763521100971,4.18,142.87,142.85,2.46548502]
[1763521101170,4.18,142.87,142.86,2.26548502]
[1763521103448,0.66,142.88,142.86,2.26548502]
[1763521103660,10.44882769,142.88,142.87,2.26548502]
[1763521103970,14.62882769,142.88,142.87,2.26548502]
[1763521104345,9.78882769,142.87,142.85,0.2]
[1763521104551,10.45882769,142.87,142.85,0.2]
[1763521104861,10.45882769,142.86,142.85,0.2]
[1763521105758,13.96882769,142.86,142.85,2.46548502]
[1763521106142,9.78882769,142.86,142.85,2.46548502]
[1763521106348,4.18,142.86,142.85,2.46548502]
[1763521106543,0.67,142.88,142.85,2.46548502]
[1763521106758,9.78882769,142.93,142.87,2.26548502]
[1763521106968,10.45882769,142.91,142.9,2.26548502]
[1763521107154,13.96882769,142.91,142.9,2.26548502]
[1763521107872,9.78882769,142.91,142.9,2.26548502]
[1763521108180,14.63882769,142.91,142.9,2.26548502]
[1763521108470,9.78882769,142.9,142.89,2.26548502]
[1763521108849,9.78882769,142.9,142.85,0.2]
[1763521108850,10.45882769,142.9,142.88,2.26548502]
[1763521109047,10.45882769,142.89,142.88,2.26548502]
[1763521109459,0.67,142.93,142.88,2.26548502]
[1763521109659,9.78882769,142.91,142.85,0.2]
[1763521109853,9.78882769,142.91,142.9,2.26548502]
[1763521111564,13.96882769,142.92,142.9,2.26548502]
[1763521111764,14.63882769,142.92,142.91,2.26548502]
[1763521111955,14.63882769,142.92,142.9,2.26548502]
[1763521112156,0.67,142.91,142.9,2.26548502]
[1763521113353,13.96882769,142.92,142.9,2.26548502]
[1763521113552,14.63882769,142.92,142.91,2.26548502]
[1763521113957,10.45882769,142.92,142.91,2.26548502]
[1763521114158,14.63882769,142.92,142.9,2.26548502]
[1763521114576,0.67,142.91,142.85,0.2]
[1763521114779,0.67,142.91,142.88,2.26548502]
[1763521116962,0.67,142.91,142.87,2.26548502]
[1763521117267,5.36664184,142.91,142.87,2.26548502]
[1763521117766,9.78882769,142.89,142.87,2.26548502]
[1763521118064,0.67,142.91,142.88,2.26548502]
[1763521118273,0.67,142.91,142.9,2.26548502]
[1763521118274,9.78882769,142.91,142.9,2.26548502]
[1763521118484,13.96882769,142.91,142.9,2.26548502]
[1763521118860,13.96882769,142.91,142.9,3.53608225]
[1763521120085,14.63882769,142.91,142.9,3.53608225]
[1763521120691,9.78882769,142.91,142.9,3.53608225]
[1763521120864,13.96882769,142.91,142.9,3.53608225]
[1763521121678,13.96882769,142.91,142.89,3.53608225]
[1763521121880,9.78882769,142.91,142.89,3.53608225]
[1763521122069,4.18,142.91,142.9,3.53608225]
[1763521122672,5.85572943,142.96,142.9,3.53608225]
[1763521122673,5.38945843,142.94,142.9,3.53608225]
[1763521122877,18.67828612,142.93,142.86,18.12096]
[1763521123084,9.78882769,142.89,142.85,0.2]
[1763521123311,9.78882769,142.87,142.85,0.2]
[1763521123596,14.50326012,142.87,142.85,0.2]
[1763521123807,4.18,142.89,142.86,3.53608225]
[1763521123966,4.18,142.89,142.85,0.2]
[1763521124173,5.39434399,142.88,142.85,0.2]
[1763521124495,14.50717785,142.87,142.85,0.2]
[1763521124702,13.98882769,142.86,142.85,0.2]
[1763521124996,19.38796508,142.86,142.85,0.2]
[1763521126378,15.18796508,142.86,142.85,0.2]
[1763521126586,19.38796508,142.86,142.85,0.2]
[1763521127076,22.92404733,142.86,142.85,0.2]
[1763521127275,27.90978769,142.84,142.83,0.2]
[1763521127495,36.16500733,142.84,142.83,0.2]
[1763521127699,27.90978769,142.8,142.71,0.61]
[1763521127874,13.32490994,142.78,142.71,0.2]
[1763521128075,18.04404733,142.78,142.72,3.73608225]
[1763521128298,9.78882769,142.76,142.72,3.73608225]
[1763521128477,9.78882769,142.74,142.72,3.73608225]
[1763521128901,10.46882769,142.74,142.72,0.2]
[1763521129096,10.46882769,142.73,142.72,0.2]
[1763521129993,13.98882769,142.73,142.72,0.2]
[1763521130814,14.66882769,142.73,142.72,0.2]
[1763521132499,9.78882769,142.73,142.72,0.2]
[1763521132691,13.98882769,142.73,142.72,0.2]
[1763521132888,13.98882769,142.73,142.72,8.97898516]
[1763521133203,0.68,142.75,142.72,8.97898516]
[1763521133400,4.2,142.74,142.73,8.77898516]
[1763521133778,4.2,142.76,142.73,8.77898516]
[1763521134001,4.2,142.76,142.74,8.77898516]
[1763521135292,4.2,142.76,142.72,0.9]
[1763521135489,4.2,142.76,142.73,8.77898516]
[1763521135690,4.88,142.76,142.73,8.77898516]
[1763521135892,4.2,142.75,142.73,8.77898516]
[1763521136086,0.68,142.76,142.73,8.77898516]
[1763521136293,4.88,142.76,142.73,8.77898516]
[1763521136709,19.24781285,142.75,142.72,0.2]
[1763521136910,18.56781285,142.73,142.72,0.2]
[1763521137101,22.76781285,142.73,142.72,0.2]
[1763521137404,23.44781285,142.73,142.72,0.2]
[1763521137590,41.56877285,142.73,142.72,0.2]
[1763521138799,23.44781285,142.73,142.72,0.2]
[1763521139109,28.12084301,142.73,142.72,0.2]
[1763521139306,9.78882769,142.72,142.71,0.2]
[1763521139505,19.24781285,142.72,142.71,0.2]
[1763521139884,23.91742048,142.72,142.71,0.2]
[1763521140608,18.56781285,142.71,142.7,0.2]
[1763521140785,23.91742048,142.71,142.7,0.2]
[1763521141195,27.90978769,142.67,142.59,0.7]
[1763521141396,8.77898516,142.64,142.59,0.7]
[1763521141588,8.77898516,142.64,142.59,9.47898516]
[1763521141589,4.2,142.63,142.59,9.47898516]
[1763521141806,4.2,142.63,142.6,8.77898516]
[1763521142008,9.45898516,142.66,142.6,9.47898516]
[1763521142009,0.68,142.65,142.6,9.47898516]
[1763521142218,4.2,142.64,142.6,9.47898516]
[1763521142412,4.2,142.64,142.59,8.77898516]
[1763521142413,9.78882769,142.63,142.59,8.77898516]
[1763521142608,19.24781285,142.63,142.57,0.7]
[1763521142913,19.24781285,142.63,142.58,8.77898516]
[1763521143113,4.2,142.62,142.59,8.77898516]
[1763521143607,4.2,142.62,142.59,9.47898516]
[1763521144613,0.68,142.61,142.56,0.9]
[1763521144809,0.68,142.61,142.57,8.77898516]
[1763521145303,9.45898516,142.61,142.56,0.9]
[1763521145498,9.45898516,142.61,142.56,9.67898516]
[1763521145703,0.68,142.6,142.56,9.67898516]
[1763521145896,4.2,142.59,142.56,9.67898516]
[1763521147515,4.2,142.59,142.56,0.2]
[1763521147815,4.88,142.59,142.56,0.2]
[1763521148618,4.2,142.58,142.56,0.2]
[1763521149205,8.77898516,142.61,142.56,8.97898516]
[1763521149401,4.2,142.6,142.56,9.67898516]
[1763521149603,4.88,142.6,142.56,9.67898516]
[1763521149914,4.2,142.6,142.56,8.97898516]
[1763521150121,0.68,142.59,142.56,8.97898516]
[1763521150702,4.2,142.58,142.56,8.97898516]
[1763521151319,0.68,142.59,142.56,0.2]
[1763521151320,4.2,142.57,142.56,0.2]
[1763521152193,0.68,142.59,142.56,0.2]
[1763521152599,4.2,142.58,142.56,0.2]
[1763521153103,18.12096,142.61,142.56,0.2]
[1763521153104,18.12096,142.61,142.56,9.66898516]
[1763521153300,4.91,142.6,142.56,8.97898516]
[1763521153703,0.71,142.59,142.56,8.97898516]
[1763521154102,0.71,142.64,142.58,8.77898516]
[1763521154323,4.6144991,142.69,142.61,8.77898516]
[1763521154505,0.71,142.66,142.61,8.77898516]
[1763521154702,4.2,142.65,142.56,0.2]
[1763521154909,26.89994516,142.62,142.57,8.77898516]
[1763521155111,9.78882769,142.6,142.56,0.89]
[1763521155325,4.2,142.59,142.56,9.66898516]
[1763521155701,4.91,142.59,142.56,0.2]
[1763521155900,4.2,142.59,142.56,0.2]
[1763521156109,0.71,142.58,142.56,0.2]
[1763521157505,18.12096,142.57,142.56,0.2]
[1763521157699,32.10978769,142.57,142.56,0.2]
[1763521158625,32.81978769,142.57,142.56,0.2]
[1763521159411,8.77898516,142.61,142.56,9.66898516]
[1763521159610,4.2,142.6,142.57,8.77898516]
[1763521160223,4.91,142.6,142.57,8.77898516]
[1763521161923,4.2,142.59,142.57,8.77898516]
[1763521162113,4.2,142.59,142.56,0.89]
[1763521162114,4.2,142.59,142.58,9.46898516]
[1763521162426,4.2,142.59,142.58,8.77898516]
[1763521163122,27.90978769,142.61,142.57,9.48898516]
[1763521163306,4.2,142.6,142.57,8.77898516]
[1763521163514,4.92,142.6,142.56,8.97898516]
[1763521163911,4.92,142.6,142.56,9.68898516]
[1763521164519,18.56781285,142.58,142.56,0.2]
[1763521164814,4.2,142.57,142.56,0.2]
[1763521165541,4.92,142.57,142.56,0.2]
[1763521165857,4.2,142.57,142.56,0.2]
[1763521166837,27.90978769,142.58,142.56,0.2]
[1763521167330,4.2,142.57,142.56,0.2]
[1763521168225,8.85329652,142.57,142.56,0.2]
[1763521168547,9.49898516,142.6,142.56,9.68898516]
[1763521168548,22.32096,142.6,142.56,9.68898516]
[1763521168846,22.32096,142.6,142.58,8.77898516]
[1763521169226,4.2,142.6,142.59,8.77898516]
[1763521169535,8.86029898,142.6,142.58,9.48898516]
[1763521169740,4.2,142.6,142.58,9.48898516]
[1763521169910,9.78882769,142.62,142.58,9.48898516]
[1763521170110,8.86029513,142.61,142.58,9.48898516]
[1763521170314,8.86029513,142.6,142.57,8.77898516]
[1763521170531,4.66029513,142.59,142.58,8.77898516]
[1763521170737,4.66029513,142.59,142.58,9.48898516]
[1763521172237,4.66029513,142.59,142.56,0.2]
[1763521172431,4.66029513,142.58,142.57,8.77898516]
[1763521172635,4.66029513,142.58,142.56,8.97898516]
[1763521172822,4.66029513,142.57,142.56,8.97898516]
[1763521173140,4.66029513,142.57,142.56,0.2]
[1763521173720,4.68294485,142.57,142.56,0.2]
[1763521174624,8.88294485,142.57,142.56,0.2]
[1763521175036,18.67177254,142.57,142.56,0.2]
[1763521175339,19.39177254,142.57,142.56,0.2]
[1763521176628,21.04545361,142.57,142.56,0.2]
[1763521176829,25.24545361,142.57,142.56,0.2]
[1763521180126,25.24545361,142.57,142.53,8.77898516]
[1763521180127,9.78882769,142.56,142.53,8.77898516]
[1763521180324,8.88294485,142.55,142.53,8.77898516]
[1763521180656,4.68294485,142.54,142.53,8.77898516]
[1763521180826,4.68294485,142.54,142.53,5.2660676]
[1763521186039,4.68294485,142.54,142.53,5.9360676]
[1763521186242,5.88322324,142.59,142.53,5.9360676]
[1763521186552,4.2,142.59,142.58,5.2660676]
[1763521186756,8.92882246,142.59,142.58,5.2660676]
[1763521187063,4.72882246,142.59,142.58,5.2660676]
[1763521187545,4.2,142.6,142.58,5.9360676]
[1763521187848,9.78882769,142.62,142.59,5.9360676]
[1763521188052,4.729402,142.61,142.6,5.2660676]
[1763521188659,4.729402,142.61,142.6,5.9360676]
[1763521189164,4.2,142.64,142.6,5.9360676]
[1763521189339,18.78096,142.65,142.62,5.2660676]
[1763521189530,0.66,142.65,142.61,5.2660676]
[1763521189732,5.38685501,142.64,142.61,5.2660676]
[1763521189933,4.72685501,142.63,142.6,5.2660676]
[1763521190153,10.44882769,142.63,142.6,5.2660676]
[1763521190432,4.2,142.62,142.6,5.2660676]
[1763521190837,8.92577228,142.62,142.59,2.94283125]
[1763521191040,9.78882769,142.59,142.54,0.67]
[1763521191241,18.12096,142.6,142.53,2.27283125]
[1763521191242,9.78882769,142.57,142.53,2.27283125]
[1763521191441,4.72752063,142.56,142.52,2.27283125]
[1763521191747,4.2,142.55,142.52,2.27283125]
[1763521191946,4.86,142.55,142.52,2.27283125]
[1763521192561,4.2,142.55,142.53,2.27283125]
[1763521192857,4.2,142.55,142.53,5.26599764]
[1763521195462,0.66,142.54,142.49,0.67]
[1763521195642,0.66,142.54,142.51,5.26599764]
[1763521196544,0.66,142.54,142.52,5.26599764]
[1763521196849,4.2,142.56,142.53,5.26599764]
[1763521197062,4.2,142.56,142.54,5.26599764]
[1763521198249,0.66,142.55,142.53,5.26599764]
[1763521198447,8.92680768,142.56,142.53,5.26599764]
[1763521198646,9.58680768,142.56,142.53,5.26599764]
[1763521199134,4.86,142.56,142.53,5.26599764]
[1763521200236,0.66,142.58,142.55,5.26599764]
[1763521200437,4.72623756,142.59,142.56,5.26599764]
[1763521200767,13.98882769,142.58,142.52,0.67]
[1763521200946,19.37506525,142.58,142.54,5.26599764]
[1763521201142,9.78882769,142.56,142.5,4.87]
[1763521201348,9.78882769,142.56,142.52,5.26599764]
[1763521201543,9.78882769,142.56,142.53,5.26599764]
[1763521201544,4.2,142.55,142.53,5.26599764]
[1763521201754,4.2,142.55,142.52,5.26599764]
[1763521201955,4.86,142.55,142.52,5.26599764]
[1763521202161,4.2,142.55,142.52,5.26599764]
[1763521202372,0.66,142.54,142.48,0.67]
[1763521202744,0.66,142.54,142.51,5.26599764]
[1763521203442,0.66,142.54,142.52,5.26599764]
[1763521204951,4.2,142.55,142.52,5.26599764]
[1763521205154,4.86,142.55,142.52,5.26599764]
[1763521205463,4.2,142.55,142.52,5.26599764]
[1763521205654,4.86,142.55,142.52,5.26599764]
[1763521205855,4.86,142.55,142.5,0.67]
[1763521206070,4.86,142.55,142.52,5.26599764]
[1763521206071,0.66,142.54,142.52,5.26599764]
[1763521207276,0.66,142.54,142.51,5.26599764]
[1763521207770,0.66,142.54,142.52,5.26599764]
[1763521208374,27.90978769,142.53,142.49,5.26599764]
[1763521208673,4.2,142.52,142.48,5.26599764]
[1763521208871,4.86,142.52,142.48,5.26599764]
[1763521209078,0.66,142.51,142.48,5.26599764]
[1763521210667,0.66,142.51,142.49,5.26599764]
[1763521211049,0.66,142.51,142.48,5.26599764]
[1763521211574,0.66,142.51,142.49,5.26599764]
[1763521212776,0.66,142.51,142.46,0.2]
[1763521212982,9.78882769,142.5,142.46,0.2]
[1763521213277,4.2,142.49,142.46,2.47632171]
[1763521213470,27.90978769,142.47,142.46,0.2]
[1763521213875,28.58978769,142.47,142.46,0.2]
[1763521215279,14.66882769,142.48,142.46,0.2]
[1763521215476,0.68,142.47,142.46,0.2]
[1763521216991,13.98882769,142.48,142.46,0.2]
[1763521217185,4.88,142.48,142.46,0.2]
[1763521217561,10.46882769,142.47,142.46,0.2]
[1763521217765,12.7451494,142.47,142.46,0.2]
[1763521218783,15.74372193,142.47,142.46,0.2]
[1763521218993,18.12096,142.47,142.46,0.2]
[1763521219193,22.32096,142.47,142.46,0.2]
[1763521219365,32.78978769,142.47,142.46,0.2]
[1763521219871,23.00096,142.47,142.46,0.2]
[1763521220074,22.32096,142.47,142.46,0.2]
[1763521220894,32.78978769,142.47,142.46,0.2]
[1763521222086,38.06468193,142.47,142.46,0.2]
[1763521225084,42.77162993,142.47,142.46,0.2]
[1763521227995,33.29673569,142.47,142.46,0.2]
[1763521228203,32.78978769,142.47,142.46,0.2]
[1763521231304,32.10978769,142.47,142.46,0.2]
[1763521231876,32.82978769,142.47,142.46,0.2]
[1763521233496,32.10978769,142.47,142.46,0.2]
[1763521234118,32.82978769,142.47,142.46,0.2]
[1763521234600,19.98372193,142.47,142.46,0.2]
[1763521235496,14.70882769,142.47,142.46,0.2]
[1763521235695,19.98372193,142.47,142.46,0.2]
[1763521236279,24.69060701,142.47,142.46,0.2]
[1763521236788,14.70882769,142.47,142.46,0.2]
[1763521238502,10.50882769,142.47,142.46,0.2]
[1763521238693,13.98882769,142.47,142.46,0.2]
[1763521239616,16.98676044,142.47,142.46,0.2]
[1763521239816,14.70882769,142.47,142.46,0.2]
[1763521240114,9.78882769,142.47,142.46,0.2]
[1763521240404,13.98882769,142.47,142.46,0.2]
[1763521241285,9.78882769,142.47,142.46,0.2]
[1763521241786,9.78882769,142.47,142.46,0.85]
[1763521241987,27.90978769,142.48,142.46,0.2]
[1763521242219,32.10978769,142.48,142.46,0.2]
[1763521242989,27.90978769,142.48,142.46,0.2]
[1763521243192,32.10978769,142.48,142.46,0.2]
[1763521244002,27.90978769,142.48,142.46,0.2]
[1763521244203,32.10978769,142.48,142.46,0.91]
[1763521244395,32.10978769,142.48,142.46,0.2]
[1763521245512,27.90978769,142.48,142.46,0.2]
[1763521245940,18.12096,142.48,142.47,0.71]
[1763521246302,4.2,142.49,142.47,4.2688174]
[1763521246616,4.2,142.51,142.48,3.5588174]
[1763521246792,18.12096,142.5,142.49,3.5588174]
[1763521246991,4.2,142.51,142.49,3.5588174]
[1763521247229,4.2,142.51,142.48,4.2688174]
[1763521247417,10.45882769,142.5,142.46,0.2]
[1763521247623,31.46860509,142.47,142.46,0.2]
[1763521247931,49.82690338,142.47,142.43,0.2]
[1763521248106,31.46860509,142.44,142.43,0.2]
[1763521248299,40.38486274,142.44,142.43,0.2]
[1763521248504,36.82604534,142.44,142.43,0.2]
[1763521248812,32.77978769,142.44,142.43,0.2]
[1763521249193,41.05828533,142.44,142.43,0.2]
[1763521250599,22.93732533,142.44,142.43,0.2]
[1763521250833,41.05828533,142.44,142.43,0.2]
[1763521250999,22.93732533,142.44,142.43,0.2]
[1763521252254,28.83593685,142.44,142.43,0.2]
[1763521252420,30.78752452,142.44,142.38,0.1]
[1763521252624,3.5588174,142.39,142.38,0.1]
[1763521252831,12.47849764,142.39,142.38,0.1]
[1763521253049,13.14849764,142.39,142.38,0.1]
[1763521254443,9.58968024,142.39,142.38,0.1]
[1763521255331,13.14849764,142.39,142.38,0.1]
[1763521255531,9.58968024,142.39,142.38,0.1]
[1763521256846,9.58968024,142.39,142.38,0.81]
[1763521256847,4.2,142.39,142.38,0.81]
[1763521258140,4.17893776,142.39,142.38,0.81]
[1763521258344,3.5588174,142.43,142.38,0.81]
[1763521258643,9.78882769,142.41,142.38,0.81]
[1763521259254,21.6797774,142.43,142.38,0.81]
[1763521259476,8.91870896,142.42,142.38,0.81]
[1763521259625,8.91870896,142.42,142.38,4.3688174]
[1763521259861,27.90978769,142.43,142.4,3.5588174]
[1763521259862,18.12096,142.43,142.4,3.5588174]
[1763521260073,4.2,142.42,142.4,3.5588174]
[1763521260258,4.2,142.42,142.41,0.71]
[1763521260787,13.34764509,142.45,142.41,0.71]
[1763521260788,0.67,142.49,142.41,4.2688174]
[1763521260996,4.2,142.48,142.45,3.5588174]
[1763521261287,9.78882769,142.48,142.46,3.5588174]
[1763521261456,9.78882769,142.48,142.46,0.71]
[1763521261656,9.78882769,142.48,142.45,3.5588174]
[1763521261893,9.78882769,142.48,142.46,0.71]
[1763521262095,4.2,142.49,142.46,4.2688174]
[1763521262758,4.2,142.49,142.47,4.2688174]
[1763521262980,9.78882769,142.5,142.47,4.2688174]
[1763521263191,4.2,142.51,142.48,4.2688174]
[1763521264380,13.98882769,142.52,142.49,0.71]
[1763521264996,13.98882769,142.52,142.49,4.2688174]
[1763521265585,4.2,142.52,142.5,4.2688174]
[1763521266081,13.34764509,142.55,142.51,0.71]
[1763521266294,4.2,142.54,142.51,4.2688174]
[1763521267007,0.67,142.6,142.53,3.5588174]
[1763521267205,4.87,142.6,142.52,0.71]
[1763521267488,3.5588174,142.64,142.59,3.5588174]
[1763521267683,4.2,142.63,142.6,4.2688174]
[1763521267886,4.70800173,142.66,142.59,3.5588174]
[1763521267887,4.2,142.62,142.59,3.5588174]
[1763521268188,4.2,142.63,142.59,3.5588174]
[1763521268391,4.2,142.63,142.6,3.5588174]
[1763521268764,13.98882769,142.63,142.59,3.5588174]
[1763521268963,18.12096,142.6,142.55,0.71]
[1763521269169,4.2,142.59,142.55,4.2688174]
[1763521269884,4.2,142.59,142.56,0.71]
[1763521270075,18.12096,142.6,142.56,4.2688174]
[1763521270281,22.99096,142.6,142.56,4.2688174]
[1763521270580,4.2,142.6,142.57,0.71]
[1763521270775,0.67,142.62,142.57,9.50702706]
[1763521270776,23.27771277,142.62,142.57,9.50702706]
[1763521270978,8.79702706,142.64,142.59,8.79702706]
[1763521271186,4.2,142.63,142.6,8.79702706]
[1763521271692,4.2,142.63,142.6,9.50702706]
[1763521272272,4.2,142.63,142.6,0.71]
[1763521272473,4.91,142.63,142.58,9.44702706]
[1763521272779,27.90978769,142.62,142.58,0.65]
[1763521272984,27.90978769,142.62,142.54,18.12096]
[1763521272985,4.2,142.63,142.59,9.44702706]
[1763521273269,4.2,142.64,142.6,8.79702706]
[1763521273596,37.41681475,142.63,142.58,0.65]
[1763521273770,37.41681475,142.63,142.58,9.44702706]
[1763521273973,8.79702706,142.64,142.59,9.44702706]
[1763521274279,4.2,142.63,142.6,0.65]
[1763521275482,19.29585475,142.62,142.57,9.44702706]
[1763521275680,19.29585475,142.62,142.57,0.65]
[1763521276005,0.71,142.61,142.57,0.65]
[1763521276190,0.71,142.61,142.57,9.44702706]
[1763521276590,9.78882769,142.64,142.58,9.44702706]
[1763521276784,9.78882769,142.64,142.61,8.79702706]
[1763521277097,13.98882769,142.64,142.61,8.79702706]
[1763521277306,0.71,142.67,142.62,9.44702706]
[1763521277602,4.2,142.68,142.63,0.65]
[1763521277804,5.3775779,142.7,142.63,0.65]
[1763521277805,4.91,142.7,142.66,8.79702706]
[1763521277973,9.78882769,142.69,142.66,9.44702706]
[1763521278470,0.71,142.7,142.66,9.44702706]
[1763521278674,4.4,142.71,142.66,9.44702706]
[1763521278918,0.71,142.7,142.66,9.44702706]
[1763521279096,5.11,142.71,142.67,9.44702706]
[1763521279295,4.4,142.71,142.67,9.44702706]
[1763521279482,0.2,142.71,142.69,8.79702706]
[1763521280007,0.2,142.71,142.7,9.44702706]
[1763521282293,0.2,142.71,142.67,0.71]
[1763521282693,0.2,142.71,142.68,8.79702706]
[1763521283080,0.91,142.71,142.67,8.79702706]
[1763521283287,0.91,142.71,142.7,8.79702706]
[1763521283288,0.2,142.71,142.7,8.79702706]
[1763521283496,10.69882769,142.71,142.67,8.79702706]
[1763521283700,19.49585475,142.71,142.67,0.71]
[1763521283882,9.78882769,142.69,142.63,0.71]
[1763521284083,22.78585475,142.69,142.64,9.50702706]
[1763521284281,22.78585475,142.69,142.64,0.71]
[1763521284486,8.79702706,142.68,142.64,0.71]
[1763521285300,23.49585475,142.69,142.64,9.50702706]
[1763521285481,4.91,142.69,142.65,8.79702706]
[1763521286698,14.69882769,142.69,142.64,9.50702706]
[1763521287794,22.78585475,142.69,142.64,9.50702706]
[1763521287995,0.71,142.68,142.64,9.50702706]
[1763521288199,0.71,142.68,142.63,8.79702706]
[1763521288586,0.71,142.68,142.63,9.50702706]
[1763521289210,9.50702706,142.68,142.63,9.50702706]
[1763521289413,18.58585475,142.67,142.62,8.79702706]
[1763521289719,18.58585475,142.67,142.46,16.88]
[1763521289720,4.2,142.66,142.61,9.50702706]
[1763521289896,9.78882769,142.65,142.6,8.79702706]
[1763521290214,10.49882769,142.65,142.6,8.79702706]
[1763521290414,22.32096,142.67,142.63,8.79702706]
[1763521291019,10.49882769,142.66,142.62,8.79702706]
[1763521291219,10.49882769,142.66,142.61,8.79702706]
[1763521291220,19.29585475,142.66,142.61,8.79702706]
[1763521291619,19.29585475,142.66,142.61,9.50702706]
[1763521291918,0.71,142.65,142.61,9.50702706]
[1763521293788,18.58585475,142.66,142.61,8.79702706]
[1763521293990,4.2,142.65,142.62,9.50702706]
[1763521294191,4.2,142.65,142.59,18.12096]
[1763521294388,4.2,142.65,142.62,8.79702706]
[1763521294816,4.91,142.65,142.62,8.79702706]
[1763521295025,4.91,142.65,142.61,8.79702706]
[1763521295427,4.91,142.65,142.61,9.50702706]
[1763521297835,4.91,142.65,142.62,8.79702706]
[1763521298126,4.91,142.65,142.61,9.50702706]
[1763521298335,4.91,142.65,142.62,8.79702706]
[1763521298638,4.2,142.65,142.62,9.50702706]
[1763521299433,4.91,142.65,142.62,8.79702706]
[1763521299626,4.2,142.65,142.63,8.79702706]
[1763521299836,13.98882769,142.67,142.63,9.50702706]
[1763521300004,4.91,142.67,142.63,9.50702706]